bitfinex-derivatives/quotes_ETHF0:USTF0_20251211
["timestamp","ask_amount","ask_price","bid_price","bid_amount"]
[1765425911922,1.3872,3186.6,3186.5,0.00297012]
[1765425912822,1.3872,3186.6,3186.5,1.13827012]
[1765425913123,1.3872,3186.6,3186.5,0.00297012]
[1765425915027,0.6978,3186.6,3186.5,1.82777012]
[1765425915226,0.6978,3186.6,3186.5,1.13827012]
[1765425915527,1.4245,3186.6,3186.5,0.43187012]
[1765425915927,5.15772536,3186.6,3186.5,0.43187012]
[1765425916725,5.15772536,3186.6,3186.5,0.00297012]
[1765425917329,5.15772536,3186.6,3186.1,0.00470957]
[1765425917330,1.4325,3186.2,3186.1,0.00470957]
[1765425917522,0.7058,3185.2,3185.1,0.86334]
[1765425917723,1.4325,3185.2,3185.1,0.15694]
[1765425918431,1.4325,3185.2,3185.1,0.1600285]
[1765425918632,0.7058,3185.2,3185.1,0.8664285]
[1765425919226,1.85251308,3186.1,3185.1,0.0030885]
[1765425919523,3.73322536,3186.2,3185.3,0.15694]
[1765425919729,0.7058,3185.6,3185.5,1.1353]
[1765425920230,1.4325,3185.6,3185.5,0.4289]
[1765425920431,1.4325,3185.5,3185.4,0.15693]
[1765425922025,0.7058,3185.5,3185.4,0.86333]
[1765425922221,0.7058,3185.6,3185.5,1.8248]
[1765425922426,1.4325,3185.6,3185.5,0.4289]
[1765425922627,0.7058,3185.6,3185.5,1.1353]
[1765425923029,0.7058,3185.6,3185.5,1.8248]
[1765425923225,4.99051308,3186.6,3185.5,0.4289]
[1765425923425,3.14113975,3186.8,3186.0,0.4289]
[1765425923728,0.00313975,3186.8,3186.3,0.15689]
[1765425923932,0.00313975,3186.8,3186.7,1.3959]
[1765425924236,0.00313975,3186.8,3186.7,1.55277]
[1765425925728,7.60751308,3188.6,3187.1,0.15685]
[1765425925928,7.60751308,3188.6,3187.0,0.4289]
[1765425926629,0.00470956,3188.1,3187.6,0.15682]
[1765425926931,0.0087641,3188.1,3188.0,1.8248]
[1765425927327,0.0087641,3188.1,3188.0,1.9816]
[1765425928028,6.12,3189.7,3188.0,6.4289]
[1765425928234,6.12,3189.7,3188.5,0.59208]
[1765425928728,6.12,3189.7,3188.5,0.4353]
[1765425929033,0.417,3191.5,3189.6,1.8588]
[1765425929229,2.26951308,3191.5,3189.8,0.15671]
[1765425929723,2.26951308,3191.5,3189.7,0.25023204]
[1765425930035,3.451,3191.9,3190.2,0.4353]
[1765425930237,0.00327455,3191.5,3190.8,0.4353]
[1765425930432,0.00327455,3191.5,3191.4,1.8588]
[1765425930636,0.241,3192.6,3191.4,1.8588]
[1765425931038,1.3917,3191.5,3190.8,0.4353]
[1765425931534,1.3917,3190.8,3190.7,0.00470137]
[1765425932636,1.3917,3190.3,3190.2,0.00383164]
[1765425932938,1.3917,3190.3,3189.0,0.59205]
[1765425933633,0.00467406,3190.3,3190.2,1.8588]
[1765425933836,0.00467406,3190.3,3190.2,1.86114139]
[1765425935642,0.00372734,3191.5,3190.2,1.86114139]
[1765425937237,0.00372734,3191.5,3190.3,0.15669]
[1765425937446,0.00372734,3191.5,3191.4,1.1794]
[1765425938037,0.69942734,3191.5,3191.4,0.4353]
[1765425938241,1.39542734,3191.5,3190.8,0.4353]
[1765425939938,1.3917,3190.9,3190.2,0.43764139]
[1765425940534,0.6957,3190.3,3190.2,0.43764139]
[1765425940733,1.3917,3190.3,3190.2,0.43764139]
[1765425940931,1.3917,3190.3,3190.2,0.00234139]
[1765425941342,0.15665,3191.1,3190.2,0.43764139]
[1765425941537,1.3917,3190.3,3190.2,0.00234139]
[1765425942445,0.6957,3189.7,3189.6,0.44000137]
[1765425942745,3.05296311,3189.7,3188.6,0.15678]
[1765425942933,0.6957,3189.1,3188.6,0.15678]
[1765425943339,0.69841972,3189.1,3189.0,0.43809341]
[1765425943941,0.00271972,3189.1,3189.0,1.86159341]
[1765425944541,1.66126311,3190.3,3189.3,1.4235]
[1765425945556,1.66466616,3190.3,3189.3,1.4235]
[1765425946654,1.66466616,3190.3,3189.3,1.58024]
[1765425946843,1.66466616,3190.3,3189.3,1.4235]
[1765425949152,0.97712955,3190.2,3189.3,1.4235]
[1765425949751,0.00340305,3190.3,3189.3,1.58024]
[1765425950152,0.00340305,3190.3,3190.2,1.1794]
[1765425950847,0.00340305,3190.3,3190.2,1.8588]
[1765425951851,1.66126311,3191.5,3190.4,0.15668]
[1765425952055,0.97949867,3191.4,3190.6,0.00470137]
[1765425952257,0.97949867,3191.3,3191.2,0.7441]
[1765425952551,0.97949867,3191.3,3191.2,1.4235]
[1765425952952,0.98280088,3191.3,3191.2,1.4235]
[1765425954251,0.98280088,3191.3,3190.8,0.59196]
[1765425954455,0.00330221,3191.3,3191.2,1.4235]
[1765425954652,0.98757248,3191.3,3191.2,1.4235]
[1765425954958,1.3917,3190.7,3190.6,0.00470137]
[1765425955248,2.37597027,3190.7,3190.6,0.00470137]
[1765425956357,3.91322733,3190.7,3190.6,0.00470137]
[1765425956748,4.60922733,3190.7,3190.6,0.00470137]
[1765425956946,8.37597027,3190.7,3189.2,0.15674]
[1765425957152,2.23953892,3190.3,3189.2,0.15674]
[1765425957357,0.98427027,3190.2,3189.2,0.15674]
[1765425957654,0.98427027,3190.1,3189.2,0.15674]
[1765425957855,0.98427027,3190.0,3189.9,1.4235]
[1765425958046,0.98427027,3190.0,3189.5,0.00470137]
[1765425958247,0.98427027,3189.9,3189.8,1.3929]
[1765425959954,0.98427027,3189.9,3189.8,0.6955]
[1765425960659,0.98427027,3189.9,3189.8,1.3929]
[1765425960852,0.6835,3189.7,3189.5,0.00470137]
[1765425961047,1.66777027,3189.7,3189.5,0.00470137]
[1765425961357,1.3938,3189.6,3189.5,0.00470137]
[1765425961556,1.3938,3189.1,3189.0,0.00279341]
[1765425961857,1.66777027,3189.1,3189.0,0.00279341]
[1765425962650,0.98427027,3189.1,3189.0,1.82569341]
[1765425964661,2.23953892,3190.0,3189.9,0.6955]
[1765425964857,0.00470137,3190.2,3189.9,1.3929]
[1765425965154,0.00470137,3190.2,3189.6,0.43]
[1765425965356,0.00470137,3190.2,3190.1,1.3929]
[1765425966258,0.00470137,3190.2,3190.1,1.5496]
[1765425966655,0.00470137,3190.2,3190.1,1.3929]
[1765425966851,0.68820137,3190.2,3189.6,0.43]
[1765425967755,0.6835,3189.7,3189.0,0.43279341]
[1765425967959,0.00470137,3190.2,3189.2,0.15674]
[1765425968157,0.00470137,3190.2,3189.3,0.15674]
[1765425968354,0.00470137,3190.2,3189.0,0.43279341]
[1765425968559,0.00470137,3190.2,3190.1,1.3929]
[1765425969253,0.00330221,3191.3,3190.2,0.43]
[1765425969558,0.00330221,3191.3,3191.2,1.3929]
[1765425969960,12.19436532,3191.3,3190.2,0.43]
[1765425970260,2.09226311,3190.8,3189.9,0.15671]
[1765425970463,3.136,3191.1,3189.9,0.15671]
[1765425970651,3.136,3191.1,3190.2,0.00470137]
[1765425970652,0.43570137,3190.8,3190.2,0.00470137]
[1765425970857,1.3938,3190.3,3190.2,0.00470137]
[1765425971452,0.6835,3190.3,3190.2,0.00470137]
[1765425971855,0.00470137,3190.8,3190.2,0.43470137]
[1765425973860,1.66596448,3190.8,3190.2,0.00470137]
[1765425974070,0.7351,3190.3,3190.2,0.00470137]
[1765425974367,2.07696448,3190.8,3190.2,0.00470137]
[1765425974966,0.00470137,3190.8,3190.2,0.41230137]
[1765425975168,0.00470137,3190.8,3190.7,1.4285]
[1765425975878,0.00470137,3190.8,3190.7,0.7428]
[1765425976179,0.00470137,3190.8,3190.2,0.56899137]
[1765425976474,0.00470137,3190.8,3190.7,1.4285]
[1765425977069,0.00470137,3190.8,3190.7,1.58517]
[1765425978971,1.37e-06,3190.8,3190.7,1.58517]
[1765425979173,0.00330221,3191.3,3191.2,1.4285]
[1765425982081,0.73840221,3191.3,3191.1,0.15665]
[1765425982272,0.7351,3190.9,3190.4,0.15669]
[1765425982478,1.4186,3190.5,3190.2,0.00470137]
[1765425982676,0.7351,3190.3,3190.2,0.00470137]
[1765425982981,1.66126311,3190.7,3190.2,0.74750137]
[1765425983393,4.79726311,3191.1,3190.2,0.74750137]
[1765425983594,1.66126311,3191.1,3190.2,0.74750137]
[1765425983890,1.66126311,3191.1,3190.2,1.15510137]
[1765425985576,0.00330221,3191.3,3191.2,1.4285]
[1765425985775,0.00330221,3191.3,3191.2,0.7428]
[1765425985989,0.00330221,3191.3,3191.2,1.4285]
[1765425987388,0.431,3192.6,3191.2,1.4285]
[1765425987588,0.431,3192.6,3191.4,0.4076]
[1765425988291,0.43339214,3192.6,3191.4,0.41124994]
[1765425989583,0.00239214,3192.6,3191.6,0.15663]
[1765425990186,0.00239214,3192.6,3192.5,1.4189]
[1765425990387,1.4137,3192.3,3192.2,0.00470137]
[1765425990893,1.4137,3191.5,3191.4,0.00364994]
[1765425991284,0.7052,3191.5,3191.4,0.00364994]
[1765425991485,1.66126311,3192.4,3191.4,1.16344994]
[1765425991685,0.00470137,3192.2,3191.6,0.00470137]
[1765425992387,1.4137,3191.7,3191.6,0.00470137]
[1765425992586,0.7052,3191.7,3191.6,0.00470137]
[1765425992785,0.00470137,3192.2,3191.6,0.71780137]
[1765425997292,1.4137,3191.7,3191.6,0.00470137]
[1765425997788,0.7052,3191.7,3191.6,0.71780137]
[1765425997988,1.4137,3191.7,3191.6,0.00470137]
[1765425998388,0.7052,3191.7,3191.6,0.71780137]
[1765425998593,0.00470137,3192.2,3191.6,1.42360137]
[1765425999092,1.4137,3191.7,3191.6,0.00470137]
[1765425999294,0.00470137,3192.2,3191.6,0.71780137]
[1765426001597,0.00470137,3192.2,3192.1,1.4189]
[1765426004894,0.7052,3192.0,3191.9,0.86971]
[1765426005101,0.7052,3192.0,3191.6,0.00470137]
[1765426005296,0.00470137,3192.2,3191.9,1.4189]
[1765426005595,0.00470137,3192.2,3192.1,0.7131]
[1765426005797,0.00470137,3192.2,3192.1,1.4189]
[1765426006798,0.70990137,3192.2,3192.1,0.7131]
[1765426006993,0.7052,3192.1,3192.0,0.7131]
[1765426008799,0.00470137,3192.2,3192.1,0.7131]
[1765426008995,0.70990137,3192.2,3192.1,0.7131]
[1765426009295,0.00470137,3192.2,3192.1,1.4189]
[1765426009600,0.7052,3192.1,3192.0,1.1598]
[1765426009797,0.7052,3192.1,3192.0,1.8656]
[1765426010099,0.00470137,3192.2,3192.1,0.7131]
[1765426010501,0.00470137,3192.2,3192.1,1.4189]
[1765426013399,0.00239214,3192.6,3192.5,1.8656]
[1765426013591,1.41609214,3192.6,3192.5,0.7131]
[1765426014092,0.70759214,3192.6,3192.5,0.7131]
[1765426014401,0.70759214,3192.6,3192.5,1.4189]
[1765426014695,0.70759214,3192.6,3192.0,0.60331]
[1765426014696,0.7052,3192.1,3192.0,1.4189]
[1765426014898,0.70759214,3192.6,3192.5,0.7131]
[1765426015196,0.70759214,3192.6,3192.5,1.8656]
[1765426015197,0.00239214,3192.6,3192.5,1.8656]
[1765426016002,1.41609214,3192.6,3192.0,0.60331]
[1765426016403,0.00239214,3192.6,3192.5,1.8656]
[1765426017294,0.411,3193.5,3193.4,1.4189]
[1765426017295,0.7052,3193.5,3193.4,1.4189]
[1765426017495,1.4137,3193.5,3193.0,0.374]
[1765426018196,1.41631377,3193.5,3193.4,0.7131]
[1765426018596,1.39,3193.1,3192.5,0.4467]
[1765426018798,1.39,3192.6,3192.5,0.681]
[1765426019195,0.4306,3193.0,3192.0,0.681]
[1765426019196,0.7124,3192.1,3192.0,0.681]
[1765426019399,1.39,3192.1,3191.3,0.15664]
[1765426019600,1.39,3192.1,3191.0,0.4463]
[1765426019601,1.39,3191.7,3191.0,0.4463]
[1765426020196,0.7124,3191.7,3191.6,0.68570137]
[1765426020397,1.39,3191.1,3190.5,0.4463]
[1765426020601,0.4306,3192.0,3191.0,1.8096]
[1765426021303,2.00183739,3193.1,3192.0,0.4463]
[1765426021500,0.4444,3193.5,3192.0,0.4463]
[1765426021501,0.00470137,3192.8,3192.0,0.4463]
[1765426021711,0.00470137,3192.8,3192.7,0.681]
[1765426021904,0.7124,3192.1,3191.5,0.4463]
[1765426022607,1.39,3192.1,3191.5,0.4463]
[1765426022801,0.00470137,3192.8,3191.5,0.4463]
[1765426022802,0.00470137,3192.8,3192.0,1.3633]
[1765426023008,0.00470137,3192.8,3192.0,1.8096]
[1765426024499,0.00470137,3192.8,3192.7,1.3633]
[1765426026007,1.39470137,3192.8,3192.0,0.60291]
[1765426026214,1.39470137,3192.8,3192.0,0.4463]
[1765426026412,1.39470137,3192.8,3191.5,0.4463]
[1765426027108,1.84527739,3192.5,3191.5,0.4463]
[1765426028316,0.4444,3192.6,3191.5,0.4463]
[1765426029412,0.00470137,3192.8,3191.5,0.4463]
[1765426030113,0.00470137,3192.8,3192.7,1.3633]
[1765426031013,0.71710137,3192.8,3192.7,0.681]
[1765426031411,0.00470137,3192.8,3192.7,1.3633]
[1765426033711,0.71710137,3192.8,3192.0,0.4463]
[1765426033913,3.85310137,3192.8,3192.0,0.4463]
[1765426034113,0.7124,3192.1,3191.2,0.00470137]
[1765426034612,0.1971,3192.6,3192.0,1.8096]
[1765426035314,0.00470137,3192.8,3192.0,1.8096]
[1765426035921,0.00470137,3192.8,3192.7,1.3633]
[1765426037411,0.00470137,3192.8,3192.0,0.4463]
[1765426037412,0.72190137,3192.8,3192.0,0.4463]
[1765426037616,0.72190137,3192.8,3192.0,0.6029]
[1765426037819,0.72190137,3192.8,3192.7,0.6853]
[1765426038117,0.00470137,3192.8,3192.7,0.6853]
[1765426038318,0.00470137,3192.8,3192.7,1.3991]
[1765426038516,2.23953892,3195.7,3195.6,1.6955]
[1765426038715,3.136,3196.7,3195.6,1.6955]
[1765426038716,3.136,3197.1,3196.5,0.6853]
[1765426038913,0.4258,3197.4,3196.5,0.6853]
[1765426039323,2.27107739,3197.4,3195.6,0.2964]
[1765426039517,1.84527739,3196.8,3195.6,0.00301974]
[1765426039817,1.84527739,3195.8,3193.8,0.54822]
[1765426040123,1.84527739,3195.2,3194.8,0.00469388]
[1765426040415,2.27107739,3195.5,3194.8,0.00469388]
[1765426040720,3.136,3195.4,3193.8,0.3917]
[1765426040917,1.84527739,3195.0,3193.8,0.3917]
[1765426041121,1.84527739,3195.0,3193.4,0.4065]
[1765426041321,4.98127739,3195.0,3193.4,0.4065]
[1765426041816,0.4258,3194.1,3193.9,0.00469388]
[1765426042016,4.98127739,3194.0,3192.7,0.4065]
[1765426042220,1.84527739,3194.0,3192.7,0.4065]
[1765426042720,0.4258,3194.1,3192.7,0.4065]
[1765426043019,0.4258,3194.1,3193.1,0.00469388]
[1765426043620,2.676465,3193.2,3192.7,0.00262582]
[1765426043919,2.676465,3193.2,3191.1,0.15665]
[1765426044717,2.676465,3193.2,3191.9,0.00469388]
[1765426044718,0.00469388,3192.6,3191.9,0.00469388]
[1765426044924,0.00825305,3192.6,3191.9,0.00469388]
[1765426045222,0.00825305,3192.6,3192.0,0.4065]
[1765426045823,0.4258,3194.1,3192.1,6.0]
[1765426046120,0.4258,3194.1,3192.0,0.4065]
[1765426046317,2.676465,3194.7,3192.2,3.58884273]
[1765426046717,2.676465,3194.7,3192.8,0.56307]
[1765426046922,0.00469388,3193.7,3192.8,0.56307]
[1765426049022,0.4282,3193.6,3192.8,0.15657]
[1765426049219,0.00469388,3193.7,3192.8,0.15657]
[1765426050232,0.00469388,3193.7,3193.1,0.15655]
[1765426050620,0.00469388,3193.7,3192.7,0.4338]
[1765426051219,0.00469388,3193.7,3193.1,0.15655]
[1765426051419,0.00469388,3193.7,3192.7,0.4338]
[1765426052528,0.00469388,3193.7,3192.9,0.15656]
[1765426054230,0.00469388,3193.7,3193.6,0.7179]
[1765426054430,0.00469388,3193.7,3193.6,0.72042141]
[1765426054621,0.00469388,3193.7,3193.6,1.40392141]
[1765426055834,0.00469388,3193.7,3193.6,0.72042141]
[1765426057032,0.00469388,3193.7,3193.6,0.00252141]
[1765426057630,0.00469388,3193.7,3193.6,1.40392141]
[1765426060038,0.00469388,3193.7,3193.6,0.72042141]
[1765426061334,0.00469388,3193.7,3193.6,0.00252141]
[1765426061640,0.00469388,3193.7,3193.6,0.72042141]
[1765426061930,0.72349388,3193.7,3193.6,0.72042141]
[1765426062435,0.00469388,3193.7,3193.6,0.72042141]
[1765426062640,0.00469388,3193.7,3193.6,1.40392141]
[1765426063034,1.43360108,3194.7,3193.7,0.15652]
[1765426064240,0.00466888,3194.5,3193.9,1.40609388]
[1765426064441,0.00466888,3194.5,3194.4,0.7179]
[1765426064927,0.00466888,3194.5,3194.4,1.8352]
[1765426065134,0.00400108,3194.7,3194.6,1.4014]
[1765426066240,5.08795826,3195.8,3194.6,1.4014]
[1765426066635,1.65595826,3196.2,3195.0,0.4338]
[1765426067034,3.136,3196.1,3195.0,0.4338]
[1765426067234,0.4312077,3196.0,3195.0,0.4338]
[1765426067936,1.65595826,3195.3,3194.0,0.15651]
[1765426068142,0.4282,3195.0,3194.0,0.15651]
[1765426068541,0.4282,3195.0,3193.9,0.00469388]
[1765426068738,1.65595826,3194.7,3193.9,0.00469388]
[1765426071631,3.08555826,3194.0,3193.9,0.00469388]
[1765426072138,1.4296,3194.0,3193.9,0.00469388]
[1765426074740,0.7188,3194.0,3193.9,0.72259388]
[1765426075536,1.4296,3194.0,3193.9,0.72259388]
[1765426075743,1.4296,3194.0,3193.9,0.00469388]
[1765426076439,1.4296,3193.7,3192.6,0.4338]
[1765426076637,1.65595826,3193.6,3192.6,0.4338]
[1765426077034,0.4204,3192.6,3191.6,0.15663]
[1765426077233,2.07635826,3193.2,3192.5,0.7281]
[1765426077540,0.42825065,3193.2,3192.5,0.73528299]
[1765426078043,1.65595826,3194.8,3193.2,0.4118]
[1765426079144,2.08671788,3194.4,3193.2,0.4118]
[1765426079741,0.43075962,3194.4,3193.2,0.4118]
[1765426080543,1.65595826,3194.3,3193.0,0.15656]
[1765426081139,1.65595826,3194.3,3192.6,0.4118]
[1765426081140,0.4217,3193.8,3192.6,0.4118]
[1765426081734,0.4217,3193.8,3192.7,0.15657]
[1765426085048,0.4217,3193.8,3192.8,0.15657]
[1765426085250,0.4217,3193.8,3192.9,0.15656]
[1765426085551,0.43075962,3194.4,3193.3,0.15654]
[1765426085947,0.00255962,3194.4,3194.3,1.4257]
[1765426086143,0.7014,3193.9,3193.8,0.7141]
[1765426086449,0.7014,3193.9,3193.3,0.15654]
[1765426086850,0.00255962,3194.4,3193.8,1.835]
[1765426087253,0.7014,3193.9,3193.5,0.15653]
[1765426087444,0.42425962,3194.4,3193.2,0.4093]
[1765426087445,0.7014,3193.6,3193.2,0.4093]
[1765426087651,0.7014,3193.6,3192.6,0.4118]
[1765426087652,0.7014,3193.6,3192.8,0.15657]
[1765426087850,0.7014,3193.6,3192.9,0.15656]
[1765426089350,0.42425962,3194.4,3193.5,0.7141]
[1765426089554,3.56025962,3194.4,3193.5,0.7141]
[1765426090252,3.56025962,3194.4,3193.5,0.87063]
[1765426090452,0.7014,3193.6,3193.5,0.87063]
[1765426090652,0.7014,3193.6,3193.5,0.15653]
[1765426090953,1.4316,3193.6,3193.5,0.15653]
[1765426093155,0.7014,3193.7,3193.6,0.15653]
[1765426093357,0.7014,3193.7,3193.6,0.87063]
[1765426094846,3.56025962,3194.4,3193.6,1.58223]
[1765426095051,0.7014,3193.7,3193.6,0.7141]
[1765426095457,3.56025962,3194.4,3193.6,1.4257]
[1765426096555,1.4097,3193.2,3193.1,0.86375]
[1765426096858,1.4097,3193.2,3193.1,0.15655]
[1765426097754,1.4097,3193.2,3193.1,0.86375]
[1765426097959,1.4097,3193.2,3193.1,0.7072]
[1765426098758,1.4097,3193.2,3192.6,0.4118]
[1765426101761,0.00255962,3194.4,3193.0,0.4492]
[1765426101958,1.4097,3193.1,3193.0,0.7072]
[1765426102155,0.6956,3193.1,3193.0,1.3906]
[1765426102957,0.4439,3194.0,3193.4,1.3906]
[1765426103656,0.6956,3193.5,3193.4,1.3906]
[1765426103858,1.4097,3193.5,3193.4,0.7072]
[1765426104659,0.4439,3194.0,3193.6,0.15653]
[1765426104865,0.00255962,3194.4,3193.9,1.3906]
[1765426105161,0.6956,3194.2,3194.1,1.5471]
[1765426105955,1.4097,3194.2,3194.1,0.8637]
[1765426107259,0.6956,3194.2,3194.1,0.8637]
[1765426107461,0.69815962,3194.4,3194.3,1.3906]
[1765426107861,0.6956,3194.2,3194.1,0.8637]
[1765426108266,1.4097,3194.2,3194.1,0.1565]
[1765426108758,1.4097,3194.2,3194.1,0.9057]
[1765426108963,1.4097,3194.2,3194.1,0.1565]
[1765426110855,1.4097,3194.2,3193.6,0.15653]
[1765426111362,0.6898,3193.7,3193.6,1.65173]
[1765426111567,1.4057,3193.7,3193.6,0.15653]
[1765426111766,1.4057,3193.7,3193.0,0.4492]
[1765426112363,0.4412,3194.0,3193.0,1.4952]
[1765426112364,0.6898,3193.1,3193.0,1.4952]
[1765426113070,1.65595826,3193.9,3193.0,1.4952]
[1765426113261,1.65595826,3193.9,3193.0,1.9078]
[1765426113662,0.4412,3194.0,3193.0,1.9078]
[1765426113663,0.4412,3194.0,3193.0,2.06436]
[1765426114964,1.4057,3193.1,3193.0,0.15656]
[1765426115167,0.6898,3192.6,3192.5,1.50238299]
[1765426115470,1.4057,3192.6,3192.5,0.75638299]
[1765426115970,0.4412,3193.0,3192.5,1.50238299]
[1765426116371,0.4412,3193.5,3193.0,0.4126]
[1765426116872,0.4412,3193.5,3192.6,0.15658]
[1765426117966,1.4057,3192.7,3192.6,0.90578]
[1765426119267,0.4412,3193.5,3192.9,1.4952]
[1765426119470,0.4412,3193.5,3193.0,0.4126]
[1765426120468,1.4057,3193.1,3193.0,0.7492]
[1765426120868,0.6898,3192.8,3192.7,1.65177]
[1765426121069,1.4057,3192.8,3192.7,1.65177]
[1765426121373,0.6898,3192.8,3192.7,1.65177]
[1765426122267,0.4412,3193.5,3192.7,1.65177]
[1765426123874,0.6898,3192.8,3192.7,1.65177]
[1765426124478,0.4412,3193.5,3192.7,1.65177]
[1765426127072,1.4057,3192.8,3192.7,1.65177]
[1765426127278,1.4057,3192.8,3192.7,0.90577]
[1765426127576,1.4057,3192.8,3192.7,1.65177]
[1765426128072,0.6898,3192.8,3192.7,1.65177]
[1765426128272,1.4057,3192.8,3192.7,0.90577]
[1765426128575,1.4057,3192.8,3192.7,1.65177]
[1765426129077,1.4057,3192.6,3192.5,0.75638299]
[1765426129380,0.6898,3192.6,3192.5,1.50238299]
[1765426129879,0.4412,3193.0,3192.5,1.91498299]
[1765426130279,1.8469,3193.0,3192.9,0.7492]
[1765426130478,1.8469,3193.0,3192.5,0.41978299]
[1765426131376,1.4057,3193.0,3192.9,0.7492]
[1765426131585,1.8469,3193.5,3193.4,0.7492]
[1765426132284,1.4057,3193.5,3193.4,1.4952]
[1765426132477,1.4057,3193.5,3193.4,0.7492]
[1765426132683,1.8469,3193.5,3193.0,0.4126]
[1765426132878,0.7159,3192.9,3192.8,0.7492]
[1765426133078,0.6898,3192.6,3192.5,1.50238299]
[1765426133271,0.4412,3193.0,3192.5,1.16578299]
[1765426133477,0.6898,3193.0,3192.9,1.4952]
[1765426133784,1.8469,3193.5,3193.4,0.7492]
[1765426134083,1.8469,3193.5,3193.0,0.4126]
[1765426134783,1.8469,3193.5,3193.4,0.7492]
[1765426136976,1.8469,3193.5,3193.0,0.4126]
[1765426138885,0.6898,3193.1,3193.0,1.8432]
[1765426139388,1.8881,3193.5,3193.4,0.6849]
[1765426139585,1.8881,3193.5,3193.0,0.4126]
[1765426139787,1.4469,3193.1,3193.0,1.3663]
[1765426139986,0.7368,3193.1,3193.0,1.3663]
[1765426140484,0.4412,3193.5,3193.0,1.8135]
[1765426140884,1.4469,3193.1,3193.0,0.6849]
[1765426141186,1.4469,3192.9,3192.8,0.15657]
[1765426141982,1.4469,3192.9,3192.8,0.84147]
[1765426142188,1.4469,3192.6,3192.5,1.37348299]
[1765426142377,0.7368,3192.6,3192.5,1.37348299]
[1765426142585,1.4469,3192.6,3192.5,1.37348299]
[1765426142889,0.7368,3192.6,3192.5,1.37348299]
[1765426143189,0.4212,3193.0,3192.5,1.82068299]
[1765426143990,0.7368,3192.6,3192.5,1.82068299]
[1765426144289,0.4412,3193.5,3192.9,1.3663]
[1765426144480,1.8881,3193.5,3193.0,0.4472]
[1765426145291,1.8881,3193.5,3193.4,0.6849]
[1765426145794,1.8881,3193.5,3193.0,0.4472]
[1765426146288,0.7368,3193.5,3193.4,1.3663]
[1765426146492,1.4469,3193.5,3193.4,1.3663]
[1765426147097,1.4469,3193.5,3193.4,0.6849]
[1765426147391,1.4469,3193.1,3193.0,0.6849]
[1765426147695,0.4212,3193.5,3193.0,1.8135]
[1765426148186,0.4412,3194.0,3193.4,1.3663]
[1765426148388,1.4469,3193.5,3193.4,0.6849]
[1765426148583,0.4412,3194.0,3193.4,1.3663]
[1765426148787,0.4412,3194.0,3193.5,0.4472]
[1765426148986,0.7368,3193.6,3193.5,1.8135]
[1765426149297,0.7368,3193.6,3193.5,1.3663]
[1765426149698,1.4469,3193.6,3193.5,1.3663]
[1765426149997,0.7368,3193.6,3193.5,1.3663]
[1765426151997,1.4469,3193.6,3193.5,1.3663]
[1765426153503,1.8935,3194.0,3193.9,1.415]
[1765426153692,1.8935,3194.0,3193.9,0.6855]
[1765426154496,1.8935,3194.0,3193.9,1.415]
[1765426154796,0.7228,3194.0,3193.9,1.415]
[1765426155000,1.4523,3194.1,3194.0,1.415]
[1765426155301,1.4523,3194.1,3194.0,0.6855]
[1765426155798,1.4523,3194.1,3194.0,1.415]
[1765426156103,1.4523,3193.7,3193.6,0.15653]
[1765426156802,0.4154,3193.0,3192.5,1.86938299]
[1765426157097,1.4523,3192.6,3192.5,0.00718299]
[1765426157498,0.4154,3193.0,3192.5,1.42218299]
[1765426157798,0.4154,3193.0,3192.5,1.86418299]
[1765426158193,0.7228,3193.0,3192.9,1.415]
[1765426158597,0.7228,3194.0,3193.9,1.415]
[1765426158798,1.8677,3193.5,3193.0,0.442]
[1765426158990,0.7228,3193.1,3193.0,1.857]
[1765426159197,0.7228,3193.1,3193.0,1.415]
[1765426159496,0.4154,3193.5,3193.0,1.415]
[1765426159702,1.8677,3193.5,3193.4,0.6855]
[1765426159902,1.8677,3193.5,3193.0,0.442]
[1765426160096,0.7228,3193.1,3193.0,1.857]
[1765426160296,1.4523,3193.1,3193.0,1.415]
[1765426160496,1.4523,3193.1,3192.6,0.15658]
[1765426161001,0.4154,3194.0,3193.4,0.6855]
[1765426161193,0.4154,3194.0,3193.0,0.442]
[1765426161194,1.8677,3193.5,3193.0,0.442]
[1765426162208,0.7228,3193.5,3193.4,1.415]
[1765426162598,0.4154,3194.0,3193.4,1.415]
[1765426163302,0.7228,3193.5,3193.4,1.415]
[1765426163501,1.4523,3193.5,3193.4,1.415]
[1765426163703,0.4154,3194.0,3193.4,1.415]
[1765426164308,0.7228,3194.0,3193.9,1.415]
[1765426164698,1.4523,3194.0,3193.9,1.415]
[1765426164903,1.4523,3194.0,3193.9,0.6855]
[1765426167309,1.4523,3193.6,3193.5,0.15653]
[1765426168708,0.4324,3193.5,3192.7,0.15657]
[1765426169206,1.396,3192.8,3192.7,0.85757]
[1765426169413,1.396,3192.8,3192.7,0.15657]
[1765426169602,1.396,3192.8,3192.7,0.85757]
[1765426169806,4.41062536,3193.4,3193.3,1.4287]
[1765426170010,0.15904962,3194.4,3193.3,1.4287]
[1765426170011,0.00255962,3194.4,3193.3,1.4287]
[1765426171515,0.00255962,3194.4,3193.8,0.15652]
[1765426174814,1.39855962,3194.4,3194.3,0.701]
[1765426175212,1.39855962,3194.4,3193.8,0.15652]
[1765426176912,1.39855962,3194.4,3194.3,1.4287]
[1765426177117,0.67995962,3194.4,3194.3,1.4287]
[1765426177918,1.39855962,3194.4,3194.3,1.4287]
[1765426178416,1.39855962,3194.4,3194.3,0.701]
[1765426179322,0.6774,3194.1,3194.0,1.8586]
[1765426180122,1.39855962,3194.4,3194.3,0.701]
[1765426180509,1.39855962,3194.4,3194.3,1.4287]
[1765426180714,0.67995962,3194.4,3194.3,1.4287]
[1765426181521,1.39855962,3194.4,3194.3,1.4287]
[1765426181718,1.39855962,3194.4,3194.3,0.701]
[1765426182623,1.39855962,3194.4,3194.3,1.4287]
[1765426183119,1.39855962,3194.4,3194.3,0.701]
[1765426184717,1.39855962,3194.4,3194.3,1.4287]